bitfinex/quotes_ETHUSD_20220213
["timestamp","ask_amount","ask_price","bid_price","bid_amount"]
[1644782796372,3.489,2868.7,2868.0,1.57367918]
[1644782796373,3.506287,2869.2,2868.2,4.65]
[1644782796577,6.365e-05,2868.6,2868.2,4.65]
[1644782796773,6.365e-05,2868.6,2868.5,5.0]
[1644782797076,3.9877,2870.1,2868.8,1.5688353]
[1644782797275,2.0941312,2870.1,2869.8,1.0149898]
[1644782797535,7.72,2870.2,2869.9,3.3]
[1644782797536,7.47,2870.2,2869.9,3.3]
[1644782797730,0.2026242,2870.9,2870.1,9.65]
[1644782797931,0.0175058,2870.8,2870.1,0.503]
[1644782798228,0.0175058,2870.8,2870.0,1.0454452]
[1644782798428,0.00756442,2870.6,2870.2,0.472716]
[1644782798628,0.0175058,2870.8,2870.6,4.65]
[1644782798828,0.0175058,2870.8,2870.5,0.503]
[1644782799029,0.0175058,2870.8,2870.4,1.045327]
[1644782799234,0.0175058,2870.8,2870.4,2.16521996]
[1644782799631,0.0175058,2870.8,2870.4,1.045327]
[1644782799828,0.0175058,2870.8,2869.9,1.7423329]
[1644782800029,0.8889158,2870.8,2869.9,1.2200092]
[1644782800428,0.8889158,2870.8,2869.9,1.0459092]
[1644782800630,1.9000464,2870.8,2869.9,1.0459092]
[1644782800829,3.98428705,2870.7,2869.9,1.0459092]
[1644782801029,1.9002564,2870.8,2869.9,1.0459092]
[1644782801030,0.87159,2870.5,2869.9,1.0459092]
[1644782801277,0.0175058,2870.8,2870.0,5.419]
[1644782801471,0.0175058,2870.8,2870.0,0.419]
[1644782801672,0.0175058,2870.8,2870.5,5.0]
[1644782801872,0.0175058,2870.8,2870.4,0.419]
[1644782802072,0.0175058,2870.8,2870.6,1.43235525]
[1644782802280,0.0175058,2870.8,2870.7,5.0]
[1644782802482,0.0175058,2870.8,2870.7,5.419]
[1644782802680,0.0175058,2870.8,2870.7,0.419]
[1644782802875,0.0175058,2870.8,2870.7,5.419]
[1644782803074,0.02680454,2871.5,2870.8,1.3067374]
[1644782803275,0.00710401,2871.3,2870.8,1.4808374]
[1644782803574,0.00710401,2871.3,2871.2,0.5]
[1644782803778,0.02680454,2871.5,2871.2,5.05759385]
[1644782803975,0.01122814,2871.6,2871.3,4.65]
[1644782804275,0.01122814,2871.6,2871.2,10.2313]
[1644782804276,0.01122814,2871.6,2871.2,5.7072]
[1644782804476,0.01122814,2871.6,2871.2,0.3]
[1644782804676,0.01122814,2871.6,2871.4,1.1426967]
[1644782804927,0.01122814,2871.6,2871.4,0.7354967]
[1644782805125,0.01122814,2871.6,2871.4,1.1426967]
[1644782806723,0.01122814,2871.6,2871.4,0.7354967]
[1644782806923,0.01122814,2871.6,2871.4,1.1426967]
[1644782807125,0.01122814,2871.6,2871.4,0.7354967]
[1644782807327,0.017029,2872.0,2871.5,5.1741]
[1644782807533,0.017029,2872.0,2871.9,5.0]
[1644782807724,0.017029,2872.0,2871.9,6.40560798]
[1644782808024,0.25,2872.9,2871.9,6.40560798]
[1644782808025,24.39748868,2874.2,2872.1,3.7]
[1644782808223,0.04553278,2872.3,2872.1,0.3]
[1644782808423,3.8219381,2873.6,2872.1,0.3]
[1644782808424,0.25,2873.2,2872.1,5.0]
[1644782808686,0.25,2873.2,2872.8,5.0]
[1644782808886,0.016603,2873.7,2873.5,4.65]
[1644782809090,0.0173658,2874.1,2873.9,0.5]
[1644782809286,0.124152,2874.7,2874.0,0.16654651]
[1644782809287,0.74901501,2874.7,2874.0,0.16654651]
[1644782809492,0.74901501,2874.7,2873.9,0.2929]
[1644782809688,0.00399966,2874.6,2874.0,0.86991]
[1644782809885,0.00399966,2874.6,2873.5,0.419]
[1644782810090,0.00399966,2874.6,2874.1,0.0719]
[1644782810287,0.74901501,2874.7,2874.1,0.0719]
[1644782810288,0.1739,2874.5,2874.1,0.0719]
[1644782810490,0.75301467,2874.7,2874.1,0.0719]
[1644782810491,0.1739,2874.6,2874.1,0.0719]
[1644782810685,0.1739,2874.6,2874.1,0.0719737]
[1644782811086,2.85,2874.4,2873.2,1.3053651]
[1644782811287,2.85,2874.4,2872.7,1.74039]
[1644782811288,4.6739,2874.3,2872.7,4.04270264]
[1644782811487,0.01247807,2874.1,2872.8,3.5]
[1644782811785,0.01247807,2874.1,2872.7,4.39093514]
[1644782811786,0.00101675,2872.9,2872.7,4.39093514]
[1644782812187,0.00101675,2872.9,2872.8,0.82301227]
[1644782812422,0.00101675,2872.9,2872.8,0.64911227]
[1644782812626,0.00101675,2872.9,2872.7,0.92254514]
[1644782813024,0.00101675,2872.9,2872.7,0.7179825]
[1644782813424,0.00101675,2872.9,2872.7,0.5]
[1644782813826,0.00101675,2872.9,2872.8,0.004]
[1644782814025,0.0123689,2872.9,2872.8,0.004]
[1644782815025,0.17491675,2872.9,2872.8,0.004]
[1644782815525,0.59391675,2872.9,2872.8,0.004]
[1644782815724,1.46486675,2872.9,2872.8,0.004]
[1644782816477,0.54391675,2872.9,2872.8,0.004]
[1644782817576,4.19780804,2872.9,2872.8,0.004]
[1644782817779,0.54391675,2872.9,2872.8,0.004]
[1644782817976,4.1212977,2872.9,2872.8,0.004]
[1644782819176,9.1212977,2872.9,2872.8,0.004]
[1644782819376,6.54391675,2872.9,2872.8,0.004]
[1644782819778,1.419,2872.9,2872.8,0.004]
[1644782820232,4.65,2872.8,2872.2,0.01135539]
[1644782820436,5.0,2872.4,2872.2,5.539e-05]
[1644782820637,4.42497442,2872.3,2872.2,5.539e-05]
[1644782820832,6.30028408,2872.3,2872.2,5.539e-05]
[1644782821036,6.30028408,2872.3,2872.1,0.5]
[1644782821037,4.65,2872.2,2872.1,0.5]
[1644782821234,0.87133,2872.0,2870.1,0.1739]
[1644782821433,1.74285,2871.4,2870.1,0.1739]
[1644782821634,0.419,2871.6,2871.2,0.5]
[1644782821833,0.00399966,2871.3,2870.5,0.5227405]
[1644782822035,0.00399966,2871.5,2871.4,0.5]
[1644782822233,0.1741,2871.5,2871.4,0.5]
[1644782822432,0.1741,2871.6,2871.4,0.5]
[1644782822733,1.34779941,2871.6,2871.4,0.5]
[1644782822936,1.34779941,2871.6,2871.4,0.4]
[1644782822937,1.17369941,2871.6,2871.4,0.4]
[1644782823133,0.1741,2871.5,2871.4,0.4]
[1644782823335,0.00399966,2871.7,2871.3,0.4]
[1644782823537,0.00399966,2871.8,2870.9,0.1741]
[1644782823773,0.00399966,2871.8,2871.5,0.4]
[1644782823976,1.74648966,2872.0,2871.6,0.3]
[1644782824172,3.46015919,2871.9,2871.6,0.3]
[1644782824374,1.13029705,2871.8,2871.7,0.4]
[1644782824574,4.8157882,2871.8,2871.7,0.4]
[1644782824775,4.8157882,2871.8,2871.7,0.7]
[1644782825074,4.8157882,2871.8,2871.6,5.473e-05]
[1644782825075,6.44232115,2871.8,2871.6,5.473e-05]
[1644782825374,5.35992253,2871.7,2871.6,5.473e-05]
[1644782825576,5.35592287,2871.7,2871.6,5.473e-05]
[1644782825874,10.35592287,2871.7,2870.2,0.5228159]
[1644782826074,10.35592287,2871.7,2869.8,6.484]
[1644782826075,5.0,2871.4,2870.1,0.5228336]
[1644782826275,1.74301,2871.2,2870.1,0.5228336]
[1644782826474,4.31900167,2871.1,2870.1,0.5228336]
[1644782826875,1.0,2871.0,2870.1,0.5228336]
[1644782827072,3.71635434,2870.9,2869.8,2.4888]
[1644782827273,0.8671323,2870.4,2869.8,0.6970008]
[1644782827526,3.36305601,2870.3,2869.8,0.6970008]
[1644782827725,3.36305601,2870.3,2869.8,0.1741]
[1644782828125,0.87113196,2870.4,2869.8,0.1741]
[1644782828325,3.38667605,2870.3,2869.2,0.7843046]
[1644782828524,0.00399966,2870.2,2869.9,0.00394217]
[1644782828723,4.25832605,2870.3,2869.9,0.00394217]
[1644782828924,0.87165,2870.3,2869.9,0.00394217]
[1644782829123,4.28009056,2870.3,2869.9,0.00394217]
[1644782829525,4.28009056,2870.3,2869.1,0.5230124]
[1644782829727,1.01428813,2869.6,2869.1,0.5230124]
[1644782830225,0.87173,2870.0,2869.1,0.7845137]
[1644782830825,3.49305795,2869.9,2869.1,0.5230124]
[1644782831027,3.49305795,2869.9,2869.4,0.01135775]
[1644782831275,3.49305795,2869.9,2869.4,0.27287435]
[1644782831577,3.49305795,2869.9,2869.4,0.01135775]
[1644782831976,3.49305795,2869.9,2869.1,0.3]
[1644782832176,0.87193,2869.7,2869.0,0.3]
[1644782832375,5.14127085,2869.6,2869.5,0.51116244]
[1644782833177,5.14127085,2869.6,2869.5,0.5]
[1644782833774,5.14127085,2869.6,2869.5,0.8]
[1644782835321,6.14127085,2869.6,2869.4,2.931e-05]
[1644782835526,6.14127085,2869.6,2867.7,1.9181294]
[1644782835527,1.419,2869.5,2867.7,1.9181294]
[1644782835726,1.419,2869.5,2867.7,1.0462094]
[1644782835727,0.8722,2869.1,2867.7,1.0462094]
[1644782835922,0.5933,2869.0,2868.8,0.5]
[1644782836322,0.5933,2869.0,2868.5,0.01492191]
[1644782836524,0.5933,2869.0,2868.8,0.5]
[1644782836727,3.32261621,2869.0,2868.8,0.5]
[1644782836925,20.78953265,2868.9,2868.8,0.5]
[1644782837128,21.20853265,2868.9,2868.8,0.5]
[1644782837326,21.20853265,2868.9,2868.8,0.8]
[1644782838329,21.38263265,2868.9,2868.8,0.8]
[1644782839572,20.20853265,2868.9,2868.8,0.8]
[1644782839773,19.78953265,2868.9,2868.8,0.8]
[1644782840776,19.78953265,2868.9,2868.8,1.1]
[1644782840777,18.13863265,2868.9,2868.8,1.1]
[1644782841475,0.86472008,2869.7,2868.9,0.3]
[1644782841676,0.86472008,2869.7,2869.5,0.5]
[1644782841876,0.86472008,2869.7,2869.5,0.8]
[1644782842528,0.8717,2869.6,2869.5,0.8]
[1644782842927,0.1741,2870.2,2869.5,0.8]
[1644782843126,0.25,2870.4,2869.5,0.3]
[1644782843127,0.29543275,2870.4,2869.5,0.3]
[1644782843327,0.04543275,2870.4,2869.5,0.3]
[1644782843527,0.04543275,2870.4,2870.3,0.3]
[1644782843726,0.91689275,2870.4,2870.3,0.3]
[1644782843925,1.78855275,2870.4,2870.3,0.3]
[1644782844127,1.74312,2870.4,2870.3,0.3]
[1644782844826,5.21035961,2870.4,2870.3,0.3]
[1644782845027,1.74312,2870.4,2870.3,0.3]
[1644782845227,5.11618462,2870.4,2870.3,0.3]
[1644782845428,6.11618462,2870.4,2870.3,0.3]
[1644782845829,6.29028462,2870.4,2870.3,0.3]
[1644782846272,0.87173,2870.2,2869.4,0.5229948]
[1644782846472,1.7648069,2869.9,2869.4,0.5229948]
[1644782846675,1.7648069,2869.9,2869.8,0.5]
[1644782848073,1.7648069,2869.9,2869.8,0.8]
[1644782848273,1.7648069,2869.9,2869.8,1.0614715]
[1644782849080,1.7648069,2869.9,2869.8,0.7614715]
[1644782849275,5.15329307,2869.9,2869.8,0.5]
[1644782849475,5.74639307,2869.9,2869.3,0.01098834]
[1644782849775,5.57229307,2869.9,2869.8,0.5]
[1644782850032,5.57229307,2869.9,2868.5,3.4578733]
[1644782850332,0.87198,2869.6,2869.3,0.01098769]
[1644782850530,0.87198,2869.6,2869.4,0.5]
[1644782850531,4.5315802,2869.5,2869.4,0.5]
[1644782850728,4.5315802,2869.5,2868.5,0.04396176]
[1644782850729,4.65,2869.4,2868.5,0.04396176]
[1644782850930,4.03417445,2869.3,2868.5,0.04396176]
[1644782851230,0.99339937,2869.2,2869.1,0.5]
[1644782851430,3.15657937,2869.2,2869.1,0.5]
[1644782851827,3.33067937,2869.2,2869.1,0.8]
[1644782852228,4.33067937,2869.2,2869.1,0.8]
[1644782853229,4.20277937,2869.2,2868.5,0.2616074]
[1644782853433,2.61635,2869.1,2868.4,0.2616315]
[1644782853671,0.87212,2869.0,2868.4,0.2616315]
[1644782854878,1.74423,2869.0,2868.4,0.2616315]
[1644782855083,0.87206,2868.8,2868.6,0.01136316]
[1644782855675,1.14777542,2868.7,2868.6,0.01136316]
[1644782856177,1.14777542,2868.7,2868.5,0.2616121]
[1644782856380,1.14777542,2868.7,2868.5,0.27297533]
[1644782856876,1.14777542,2868.7,2868.5,0.01136323]
[1644782857080,0.87217,2868.6,2868.5,0.01136323]
[1644782857276,0.87217,2868.6,2868.4,0.5232107]
[1644782857529,1.74435,2868.6,2868.5,0.0113633]
[1644782858527,1.74435,2868.6,2868.3,0.2616474]
[1644782858726,1.74435,2868.6,2868.4,0.01136337]
[1644782859729,1.74435,2868.6,2868.3,0.2616474]
[1644782859928,1.74435,2868.6,2868.4,0.01136343]
[1644782860330,0.87217,2868.6,2868.4,0.01136343]
[1644782860632,4.36057,2869.0,2868.4,0.01136343]
[1644782860633,0.13819997,2869.3,2868.4,0.53458333]
[1644782860835,0.1743,2869.9,2868.4,0.5232199]
[1644782861034,1.74344,2870.3,2868.8,0.2615128]
[1644782861035,3.5,2870.2,2868.8,0.2615128]
[1644782861284,2.61541,2870.0,2868.8,0.2615128]
[1644782861485,0.87656406,2869.1,2868.8,0.2615128]
[1644782861690,0.87183,2869.0,2868.8,0.2615128]
[1644782862084,0.1741,2869.9,2868.8,0.2615128]
[1644782862085,2.61541,2870.0,2868.9,9.66228808]
[1644782862280,0.0113638,2869.6,2869.1,0.2614683]
[1644782862482,0.0113638,2869.6,2869.2,0.419]
[1644782862684,0.0113638,2869.6,2869.4,2.24266]
[1644782862886,0.0113638,2869.6,2869.5,0.3]
[1644782863083,0.97751703,2869.6,2869.5,0.3]
[1644782863283,0.96615323,2869.6,2869.5,0.3]
[1644782863689,0.01136506,2869.7,2869.5,0.3]
[1644782864492,0.87153,2870.2,2869.7,0.2614482]
[1644782864789,1.17759531,2869.8,2869.7,0.2614482]
[1644782866238,0.01136479,2869.9,2869.7,0.5614482]
[1644782866832,0.01136479,2869.9,2869.8,0.5]
[1644782867034,0.2195491,2870.5,2869.9,0.2614573]
[1644782867035,0.1741,2870.5,2869.9,0.2614573]
[1644782867233,0.04544962,2870.5,2870.4,0.5]
[1644782867434,1.78850962,2870.5,2870.4,0.5]
[1644782867833,0.04544962,2870.5,2870.4,0.5]
[1644782868034,2.0640684,2870.6,2870.4,0.5]
[1644782868232,2.0640684,2870.6,2870.4,0.7614502]
[1644782868433,2.07543223,2870.6,2870.4,0.7614502]
[1644782868699,0.1741,2870.5,2870.4,0.7614502]
[1644782871499,0.1741,2870.5,2869.7,0.3]
[1644782871701,0.87175,2870.3,2869.7,0.3]
[1644782871902,0.87175,2870.3,2869.2,1.2065]
[1644782871903,0.1741,2870.2,2870.1,0.5]
[1644782872429,0.1741,2870.2,2870.1,0.38348142]
[1644782872430,0.5931,2870.2,2870.1,0.38348142]
[1644782872623,0.87186,2869.9,2869.2,1.74026666]
[1644782872922,4.3593,2870.1,2869.2,0.5230867]
[1644782872923,1.14895334,2869.7,2869.2,0.5230867]
[1644782873122,1.14895334,2869.7,2869.2,0.53376595]
[1644782873322,0.1741,2869.6,2869.4,0.2615555]
[1644782873722,0.1741,2869.6,2869.4,0.5]
[1644782874922,1.04601,2869.6,2869.4,0.5]
[1644782875122,0.87188,2869.5,2869.4,0.5]
[1644782875523,2.80049652,2869.6,2869.4,0.5]
[1644782875823,3.67240652,2869.6,2869.4,0.5]
[1644782876024,3.67240652,2869.6,2869.4,0.7615566]
[1644782876474,3.66168,2869.6,2869.4,0.7615566]
[1644782876675,3.67240652,2869.6,2869.4,0.7615566]
[1644782876873,3.49830652,2869.6,2869.4,0.7615566]
[1644782877079,6.81323787,2869.6,2869.4,0.7615566]
[1644782877274,6.85824828,2869.6,2869.4,0.7615566]
[1644782877474,3.49830652,2869.6,2869.4,0.7615566]
[1644782877674,3.48758,2869.6,2869.4,0.7615566]
[1644782877875,3.49830652,2869.6,2869.4,0.7615566]
[1644782878076,3.38207547,2869.5,2869.4,0.7615566]
[1644782878475,3.38207547,2869.5,2869.4,0.5]
[1644782879279,3.66168,2869.6,2869.4,0.5]
[1644782879682,3.66168,2869.6,2869.4,0.761546]
[1644782879936,1.91786,2869.6,2869.4,0.761546]
[1644782880525,5.07156186,2869.6,2869.4,0.761546]
[1644782880725,1.74376,2869.6,2869.4,0.5]
[1644782880927,5.92590019,2869.6,2869.4,0.5]
[1644782881125,6.92590019,2869.6,2869.4,0.5]
[1644782881926,5.92590019,2869.6,2869.4,0.5]
[1644782882130,3.43278262,2869.5,2869.4,0.5]
[1644782882527,3.36674528,2869.5,2869.4,0.5]
[1644782883527,3.36674528,2869.5,2869.3,0.3]
[1644782883774,4.65,2869.3,2867.9,1.91786]
[1644782883979,4.65,2869.3,2867.4,0.99293395]
[1644782883980,0.87215,2868.9,2868.4,0.04551715]
[1644782884174,4.65,2868.7,2867.4,4.81335343]
[1644782884372,4.32271784,2868.6,2868.5,0.5]
[1644782884571,4.03546,2868.9,2868.5,0.5]
[1644782884572,3.36088578,2868.8,2868.5,0.5]
[1644782884773,1.0,2868.7,2868.5,0.5]
[1644782884979,4.48305235,2868.6,2868.5,0.5]
[1644782885174,4.65735235,2868.6,2867.4,3.8325]
[1644782885378,3.61705,2868.5,2867.4,3.8325]
[1644782885573,1.0,2868.0,2867.4,3.8325]
[1644782885775,0.87179417,2867.6,2867.1,0.7850119]
[1644782885974,0.87236,2867.8,2867.1,0.7850119]
[1644782886176,1.74461,2867.7,2867.1,0.7850119]
[1644782886676,0.87231,2867.5,2867.1,0.7850119]
[1644782888128,1.74937196,2867.5,2867.2,0.2616945]
[1644782888728,1.74937196,2867.5,2867.2,0.27307321]
[1644782889628,1.74937196,2867.5,2867.2,0.2616945]
[1644782889829,1.74937196,2867.5,2867.2,0.27307321]
[1644782890827,1.74937196,2867.5,2867.2,0.2616945]
[1644782891281,1.74937196,2867.5,2867.2,0.27307842]
[1644782891482,1.74937196,2867.5,2867.2,0.01138392]
[1644782891483,5.07222232,2867.4,2867.2,0.01138392]
[1644782891677,4.43018944,2867.3,2867.2,0.01138392]
[1644782892180,4.43018944,2867.3,2866.5,0.3490432]
[1644782892379,0.57896074,2866.6,2866.5,0.3490432]
[1644782892576,1.04707,2867.2,2866.5,0.3490432]
[1644782892577,3.87006939,2867.1,2866.5,0.8490432]
[1644782892977,0.87267,2867.0,2866.5,0.8490432]
[1644782893278,3.40039195,2866.9,2866.5,0.6745389]
[1644782893476,1.74548,2867.0,2866.6,0.01138182]
[1644782893477,1.11922755,2866.7,2866.6,0.01138182]
[1644782893879,1.11922755,2866.7,2866.2,0.04553412]
[1644782893880,4.2,2866.6,2866.2,0.04553412]
[1644782894081,5.07295,2866.6,2866.2,0.04553412]
[1644782894281,0.1744,2866.5,2866.2,0.04553412]
[1644782894477,1.6744,2866.5,2865.5,0.3491583]
[1644782894677,0.92743613,2865.9,2865.5,0.3491583]
[1644782894936,0.92743613,2865.9,2865.7,0.5]
[1644782895331,0.87295,2865.8,2865.7,0.6745854]
[1644782895527,0.87295,2865.8,2865.7,0.5]
[1644782896331,2.37295,2865.8,2865.7,0.5]
[1644782896727,2.37295,2865.8,2865.7,0.8]
[1644782897328,0.87267,2866.4,2865.7,0.8]
[1644782897528,0.87267,2866.4,2865.8,0.3]
[1644782897933,4.01737057,2867.3,2865.8,0.3]
[1644782897934,3.83657672,2867.3,2865.8,0.3]
[1644782898130,0.1744,2867.3,2865.8,6.3470557]
[1644782898329,0.1744,2867.3,2867.2,0.5]
[1644782898530,0.01137153,2867.6,2867.2,0.8489574]
[1644782898778,1.07570889,2867.4,2867.2,0.8489574]
[1644782898974,1.07570889,2867.4,2867.2,1.1489574]
[1644782899176,0.87236,2867.4,2867.2,1.1489574]
[1644782899376,0.87236,2867.4,2867.2,1.3234361]
[1644782900281,0.87236,2867.4,2867.2,1.1489574]
[1644782900486,0.1743,2867.9,2867.2,1.3234327]
[1644782900877,0.01137467,2867.6,2867.2,1.3234327]
[1644782901479,0.01137467,2867.6,2867.2,0.8234327]
[1644782901777,0.02834654,2868.0,2867.5,0.3]
[1644782902178,0.01137493,2867.6,2867.5,0.3]
[1644782902436,0.01137493,2867.6,2867.4,0.5]
[1644782902633,0.01137493,2867.6,2867.5,0.3]
[1644782903045,0.1743,2867.9,2867.5,0.3]
[1644782903233,0.1743,2867.9,2867.5,0.3488866]
[1644782903234,0.01137519,2867.6,2867.5,0.3488866]
[1644782903633,0.01137519,2867.6,2867.5,0.6488866]
[1644782904036,0.01137519,2867.6,2867.5,0.3]
[1644782904234,0.87225,2867.7,2867.5,0.3]
[1644782904434,0.88362513,2867.7,2867.5,0.8]
[1644782905238,0.87225,2867.7,2867.5,0.8]
[1644782905639,0.88362506,2867.7,2867.5,0.8]
[1644782906477,0.87225,2867.7,2867.5,0.8]
[1644782906677,0.88362506,2867.7,2867.5,0.8]
[1644782907079,0.88362506,2867.7,2867.5,0.974448]
[1644782907680,0.90051654,2868.0,2867.5,0.974448]
[1644782907881,0.02834654,2868.0,2867.8,0.5]
[1644782908082,0.02834654,2868.0,2867.8,1.0232204]
[1644782908286,0.1743,2868.1,2867.8,0.8232204]
[1644782908482,0.13819997,2868.2,2867.8,0.8232204]
[1644782908681,0.1743,2868.7,2867.9,0.5]
[1644782908881,0.1743,2868.7,2868.0,1.17192]
[1644782909082,0.18221593,2869.1,2868.1,0.1744063]
[1644782909083,0.1743,2868.8,2868.1,0.1744063]
[1644782909282,0.1743,2868.8,2868.5,0.5]
[1644782909481,0.1743,2869.3,2868.6,0.5]
[1644782909681,0.1743,2869.3,2868.6,0.8]
[1644782909950,0.8718,2869.2,2868.6,0.8]
[1644782910343,0.1743,2869.3,2868.6,0.9743702]
[1644782910344,0.01137324,2869.1,2868.6,0.9743702]
[1644782910543,0.01137324,2869.1,2868.9,0.5]
[1644782910743,0.1741,2869.0,2868.9,0.5]
[1644782911146,1.046,2869.0,2868.9,0.5]
[1644782911544,0.8719,2869.0,2868.9,0.5]
[1644782912948,1.046,2869.0,2868.9,0.5]
[1644782913981,0.8719,2869.0,2868.9,0.5]
[1644782915577,0.8719,2869.0,2868.9,0.45]
[1644782918528,1.046,2869.0,2868.9,0.45]
[1644782919127,4.367317,2869.0,2868.9,0.45]
[1644782919427,5.367317,2869.0,2868.9,0.45]
[1644782920230,5.193217,2869.0,2868.9,0.45]
[1644782920433,1.8719,2869.0,2868.9,0.45]
[1644782920830,0.8719,2869.0,2868.9,0.45]
[1644782921674,4.35568169,2869.0,2868.9,0.45]
[1644782921873,5.35568169,2869.0,2868.9,0.45]
[1644782922073,2.046,2869.0,2868.9,0.45]
[1644782922674,1.8719,2869.0,2868.9,0.45]
[1644782923077,2.3739,2869.0,2868.9,0.45]
[1644782929672,2.3739,2869.0,2868.6,0.3]
[1644782929673,0.87228,2868.9,2868.6,0.3]
[1644782929875,0.60391236,2868.8,2868.6,0.3]
[1644782930175,0.1741,2868.7,2868.6,0.3]
[1644782930374,0.6761,2868.7,2868.6,0.3]
[1644782930973,0.6761,2868.7,2868.6,0.12325849]
[1644782930974,1.55986838,2868.7,2868.6,0.12325849]
[1644782931576,1.38576838,2868.7,2867.8,2.3342]
[1644782931782,2.61674,2868.5,2867.7,0.3488965]
[1644782931976,1.37426,2868.5,2867.7,0.3488965]
[1644782932177,1.37426,2868.5,2867.9,0.1744518]
[1644782932427,1.37426,2868.5,2868.3,0.5]
[1644782932828,2.37426,2868.5,2868.3,0.5]
[1644782933028,1.74455,2868.4,2868.3,0.5]
[1644782935032,0.74455,2868.4,2868.3,0.5]
[1644782940230,0.74455,2868.4,2868.2,0.3488393]
[1644782940427,0.74455,2868.4,2867.3,3.8458]
[1644782940428,0.87236,2868.2,2867.3,3.8458]
[1644782940625,1.37436,2868.2,2867.2,0.5233418]
[1644782941126,1.74486,2868.0,2867.2,0.5233418]
[1644782941324,0.502,2867.9,2867.2,0.5233418]
[1644782941525,0.00751458,2867.8,2867.3,0.1744877]
[1644782941724,0.00751458,2867.8,2867.4,0.348907]
[1644782942135,0.00751458,2867.8,2867.6,0.5]
[1644782942527,0.87217,2867.9,2867.6,1.0232549]
[1644782942925,0.01100448,2867.8,2867.6,1.0232549]
[1644782943679,0.01100448,2867.8,2867.7,0.1744429]
[1644782943878,1.74432,2868.3,2867.7,0.1744429]
[1644782944181,0.01100448,2867.8,2867.7,0.1744429]
[1644782944977,1.74443,2868.4,2867.7,0.1744429]
[1644782945179,0.01100442,2867.9,2867.7,0.1744429]
[1644782945679,0.01100442,2867.9,2867.8,0.5]
[1644782945882,0.01100442,2867.9,2867.8,6.9846276]
[1644782946082,0.01100442,2867.9,2867.8,1.9846276]
[1644782946287,0.10191236,2868.8,2868.1,0.1743894]
[1644782946492,0.87193,2868.7,2868.1,0.1743894]
[1644782946680,0.87193,2868.7,2868.1,1.20867797]
[1644782946882,0.87193,2868.7,2868.5,0.4856]
[1644782947725,0.88274968,2868.7,2868.5,0.4856]
[1644782948123,0.88274968,2868.7,2868.5,1.0087849]
[1644782948323,0.88274968,2868.7,2868.5,0.5231849]
[1644782948324,0.01081968,2868.7,2868.5,0.5231849]
[1644782948526,0.10191236,2868.8,2868.5,1.0079849]
[1644782948725,0.10191236,2868.8,2868.6,5.1109025]
[1644782948924,0.01081968,2868.7,2868.5,1.0079849]
[1644782949123,0.01081968,2868.7,2868.6,1.48424499]
[1644782949528,0.01081968,2868.7,2868.5,0.5231849]
[1644782949728,0.10191236,2868.8,2868.5,1.0079849]
[1644782949926,0.10191236,2868.8,2868.5,1.8796849]
[1644782950130,0.11274429,2868.8,2868.5,1.8796849]
[1644782950526,0.11274429,2868.8,2868.6,0.4848]
[1644782950724,0.11274429,2868.8,2868.6,2.14412098]
[1644782950927,0.10191236,2868.8,2868.6,2.14412098]
[1644782951183,0.11274423,2868.8,2868.6,6.59751949]
[1644782951384,0.25,2869.8,2868.7,3.05]
[1644782951385,0.1741,2869.7,2868.7,3.05]
[1644782951587,0.87172,2869.4,2868.8,0.1743445]
[1644782951784,0.87172,2869.4,2869.2,0.4848]
[1644782951985,0.87172,2869.4,2869.3,0.3]
[1644782952787,0.1741,2869.7,2869.3,0.3]
[1644782952788,1.7436,2869.5,2869.3,0.3]
[1644782953183,1.7436,2869.5,2869.3,0.7848]
[1644782953385,0.1741,2869.4,2869.3,0.7848]
[1644782954385,3.52956488,2869.4,2869.3,0.7848]
[1644782957732,3.52956488,2869.4,2869.3,0.4848]
[1644782958233,0.1741,2869.4,2869.3,0.4848]
[1644782958433,3.53482867,2869.4,2869.3,0.4848]
[1644782959080,3.53482867,2869.4,2869.3,0.7848]
[1644782959680,3.53482867,2869.4,2869.3,0.4848]
[1644782960081,3.53482867,2869.4,2868.8,0.348766]
[1644782960280,3.53482867,2869.4,2868.5,0.3487982]
[1644782960281,0.87206,2869.2,2868.5,0.3487982]
[1644782960484,0.5127134,2869.0,2868.7,0.1744062]
[1644782960685,0.1741,2868.9,2868.7,0.1744062]
[1644782960882,0.1741,2868.9,2868.7,0.5]
[1644782961081,0.1741,2869.0,2868.7,0.5]
[1644782961282,1.74412,2868.9,2868.8,0.3]
[1644782965032,1.74412,2868.9,2868.8,0.29]
[1644782966034,5.20940244,2868.9,2868.8,0.29]
[1644782966278,5.71140244,2868.9,2868.8,0.29]
[1644782966676,5.71140244,2868.9,2868.7,0.5]
[1644782966877,2.42022,2868.9,2868.8,0.3]
[1644782967076,5.8516696,2868.9,2868.8,0.3]
[1644782967476,5.8516696,2868.9,2868.1,0.1744406]
[1644782967677,0.87228,2868.6,2867.9,0.07849994]
[1644782967877,1.54872,2868.5,2867.9,0.03301325]
[1644782968178,2.36012,2868.5,2867.9,0.07849648]
[1644782968379,5.97738,2868.5,2868.3,0.5]
[1644782968576,6.09484727,2868.5,2868.3,0.5]
[1644782968778,1.74484,2868.4,2867.9,0.07849648]
[1644782968976,2.6172,2868.4,2868.3,0.5]
[1644782969177,3.24684,2868.4,2868.3,0.5]
[1644782969377,3.24684,2868.4,2868.3,0.8]
[1644782970232,3.42114,2868.4,2868.3,0.8]
[1644782971432,3.24684,2868.4,2868.3,0.8]
[1644782972034,2.24684,2868.4,2868.3,0.8]
[1644782972236,1.05444734,2868.5,2868.3,0.8]
[1644782972435,0.87224,2868.5,2868.3,0.8]
[1644782972633,0.87224,2868.5,2868.4,0.3]
[1644782973781,1.99825,2868.7,2868.4,0.3]
[1644782973782,0.2542,2868.7,2868.4,0.3]
[1644782974486,0.2542,2868.7,2868.5,0.5]
[1644782974683,0.2542,2868.7,2868.5,0.8487621]
[1644782974881,0.2542,2868.7,2868.6,0.3]